bitfinex-derivatives/quotes_BNBF0:USTF0_20250630
["timestamp","ask_amount","ask_price","bid_price","bid_amount"]
[1751280632124,2.40122654,652.03,651.55,1.14887012]
[1751280632325,2.40122654,652.02,651.55,1.14887012]
[1751280632523,2.40122654,652.01,651.55,1.14887012]
[1751280632729,2.40132561,652.0,651.54,1.14887012]
[1751280632927,1.05049826,651.99,651.54,1.14887012]
[1751280633127,1.05049826,651.98,651.54,1.14887012]
[1751280633328,1.05049826,651.97,651.54,1.14887012]
[1751280633524,1.05049826,651.96,651.54,1.14887012]
[1751280633724,1.05049826,651.95,651.54,1.14887012]
[1751280633926,1.05049826,651.94,651.54,1.14887012]
[1751280634129,1.05049826,651.93,651.53,1.14887012]
[1751280634330,1.05049826,651.92,651.53,1.14887012]
[1751280634625,1.05049826,651.91,651.54,1.14887012]
[1751280634830,0.50181682,652.16,651.52,1.14887012]
[1751280635031,2.90372674,652.15,651.52,1.14887012]
[1751280635227,4.04990881,652.14,651.47,2.809]
[1751280635427,2.90372674,652.13,651.47,2.809]
[1751280635631,2.90372674,652.12,651.47,2.809]
[1751280635828,2.90372674,652.11,651.47,2.809]
[1751280636030,2.40190992,652.1,651.47,2.809]
[1751280636232,2.40190992,652.09,651.47,2.809]
[1751280636534,2.40190992,652.08,651.47,2.809]
[1751280636734,2.40190992,652.07,651.47,2.809]
[1751280636930,2.40190992,652.06,651.47,2.809]
[1751280637129,2.40190992,652.05,651.47,2.809]
[1751280637329,2.40190992,652.04,651.47,2.809]
[1751280637531,2.40190992,652.03,651.47,2.809]
[1751280637728,2.40190992,652.02,651.47,2.809]
[1751280638034,2.40190992,652.01,651.47,2.809]
[1751280638331,2.40190992,652.0,651.47,2.809]
[1751280638534,1.05097454,651.99,651.47,2.809]
[1751280638729,1.05097454,651.98,651.47,2.809]
[1751280639032,1.05097454,651.97,651.47,2.809]
[1751280639229,1.05097454,651.96,651.47,2.809]
[1751280639429,1.05097454,651.95,651.48,1.716]
[1751280639631,1.05097454,651.94,651.48,1.716]
[1751280639828,1.05097454,651.93,651.48,1.716]
[1751280640030,1.05097454,651.92,651.48,1.716]
[1751280640228,1.05097454,651.91,651.52,1.14887012]
[1751280640432,1.05097454,651.9,651.52,1.14887012]
[1751280640731,1.05097454,651.89,651.52,1.14887012]
[1751280640934,1.14618207,652.09,651.52,1.14887012]
[1751280641135,2.90399357,652.08,651.52,1.14887012]
[1751280641432,2.90399357,652.07,651.52,1.14887012]
[1751280641635,2.40215596,652.06,651.52,1.14887012]
[1751280641932,2.40215596,652.05,651.52,1.14887012]
[1751280642134,2.40215596,652.04,651.52,1.14887012]
[1751280642335,1.5303948,652.22,651.52,1.14887012]
[1751280642336,2.40215596,652.03,651.52,1.14887012]
[1751280642537,2.40215596,652.02,651.52,1.14887012]
[1751280642732,2.40215596,652.01,651.52,1.14887012]
[1751280642936,2.40215596,652.0,651.52,1.14887012]
[1751280643132,2.40215596,651.99,651.52,1.14887012]
[1751280643332,2.40215596,651.98,651.53,1.14887012]
[1751280643636,2.40215596,651.97,651.53,1.14887012]
[1751280643835,2.40215596,651.96,651.53,1.14887012]
[1751280644036,1.05115355,651.95,651.51,1.14887012]
[1751280644237,1.14618207,652.09,651.51,1.14887012]
[1751280644238,1.05115355,651.94,651.51,1.14887012]
[1751280644431,1.05115355,651.93,651.51,1.14887012]
[1751280644636,1.05115355,651.92,651.51,1.14887012]
[1751280644837,1.05115355,651.91,651.52,1.14887012]
[1751280645038,1.05115355,651.9,651.52,1.14887012]
[1751280645235,1.05115355,651.89,651.52,1.14887012]
[1751280645439,1.05115355,651.88,651.52,1.14887012]
[1751280645637,1.14618207,652.08,651.52,1.14887012]
[1751280645837,2.90465672,652.07,651.52,1.14887012]
[1751280646038,2.40270457,652.06,651.52,1.14887012]
[1751280646240,1.14618207,652.08,651.52,1.14887012]
[1751280646241,2.40270457,652.05,651.52,1.14887012]
[1751280646436,2.40270457,652.04,651.52,1.14887012]
[1751280646636,2.40270457,652.03,651.52,1.14887012]
[1751280646839,2.40270457,652.02,651.52,1.14887012]
[1751280647038,2.40270457,652.01,651.52,1.14887012]
[1751280647238,2.40270457,652.0,651.53,1.14887012]
[1751280647537,2.40270457,651.99,651.53,1.14887012]
[1751280647742,2.40270457,651.98,651.53,1.14887012]
[1751280648041,2.40270457,651.98,651.48,1.716]
[1751280648042,1.05139353,651.97,651.48,1.716]
[1751280648237,1.05139353,651.96,651.48,1.716]
[1751280648440,1.05139353,651.95,651.48,1.716]
[1751280648641,1.05139353,651.94,651.48,1.716]
[1751280648841,1.05139353,651.93,651.48,1.716]
[1751280649037,1.05139353,651.92,651.48,1.716]
[1751280649238,1.05139353,651.91,651.48,2.86487012]
[1751280649442,1.05139353,651.9,651.48,2.86487012]
[1751280649642,1.05139353,651.89,651.48,2.86487012]
[1751280649842,0.5020859,652.1,651.48,2.86487012]
[1751280649843,0.5020859,652.09,651.48,2.86487012]
[1751280650039,1.14618207,652.11,651.48,2.86487012]
[1751280650040,2.40334479,652.08,651.48,2.86487012]
[1751280650242,2.40334479,652.07,651.48,2.86487012]
[1751280650443,2.40334479,652.06,651.48,2.86487012]
[1751280650644,2.40334479,652.05,651.48,2.86487012]
[1751280650843,1.14618207,652.1,651.48,2.86487012]
[1751280650844,2.40334479,652.04,651.48,2.86487012]
[1751280651143,2.40334479,652.03,651.49,2.30587012]
[1751280651344,2.40334479,652.02,651.49,2.30587012]
[1751280651639,2.40334479,652.01,651.49,2.30587012]
[1751280651840,2.40334479,652.0,651.49,2.30587012]
[1751280652039,2.40334479,651.99,651.49,2.30587012]
[1751280652242,2.40334479,651.98,651.49,2.30587012]
[1751280652439,2.40367368,651.97,651.49,2.30587012]
[1751280652639,1.05167368,651.96,651.49,2.30587012]
[1751280652843,1.05167368,651.95,651.49,2.30587012]
[1751280653046,1.05167368,651.94,651.49,2.30587012]
[1751280653247,1.05167368,651.93,651.5,1.555]
[1751280653546,1.05167368,651.92,651.5,1.555]
[1751280653747,1.05167368,651.91,651.5,1.555]
[1751280653944,1.05167368,651.9,651.5,2.70387012]
[1751280654249,1.14618207,652.13,651.51,1.533]
[1751280654447,2.90660577,652.12,651.51,1.533]
[1751280654647,2.90660577,652.11,651.52,0.63]
[1751280654843,2.90660577,652.1,651.52,0.63]
[1751280655146,2.4043168,652.09,651.52,0.63]
[1751280655344,2.90663072,652.08,651.52,0.63]
[1751280655544,1.14618207,652.11,651.52,0.63]
[1751280655545,2.90663072,652.07,651.52,0.63]
[1751280655849,2.90663072,652.06,651.52,0.63]
[1751280656048,2.4043168,652.05,651.52,0.63]
[1751280656248,2.4043168,652.04,651.52,0.63]
[1751280656443,2.4043168,652.03,651.52,0.63]
[1751280656645,2.4043168,652.02,651.52,0.63]
[1751280656946,2.4043168,652.01,651.52,0.63]
[1751280657250,2.4043168,652.0,651.53,1.641]
[1751280657550,2.4043168,651.99,651.53,1.641]
[1751280657749,2.4043168,651.98,651.53,1.641]
[1751280657945,2.4043168,651.97,651.53,1.641]
[1751280658147,2.4043168,651.96,651.53,1.641]
[1751280658348,2.4043168,651.95,651.53,1.641]
[1751280658650,1.05209902,651.94,651.53,1.641]
[1751280658851,1.05209902,651.93,651.53,1.641]
[1751280659049,1.05209902,651.92,651.53,1.641]
[1751280659246,1.05209902,651.91,651.53,1.641]
[1751280659549,1.05209902,651.9,651.53,1.641]
[1751280659748,1.05209902,651.89,651.53,1.641]
[1751280660048,1.05209902,651.88,651.53,1.641]
[1751280660347,1.05209902,651.87,651.53,1.641]
[1751280660547,1.05209902,651.86,651.53,1.641]
[1751280660847,0.50238139,652.24,651.53,1.641]
[1751280661050,2.90710239,652.23,651.53,1.641]
[1751280661347,2.90710239,652.22,651.54,1.6]
[1751280661551,2.90710239,652.21,651.54,1.6]
[1751280661851,2.90710239,652.2,651.54,1.6]
[1751280662048,2.90710239,652.19,651.54,1.6]
[1751280662251,2.90710239,652.18,651.54,1.6]
[1751280662450,2.90710239,652.17,651.54,1.6]
[1751280662652,2.90710239,652.16,651.54,1.6]
[1751280662850,2.90710239,652.15,651.54,1.6]
[1751280663049,1.14810083,652.08,651.54,1.6]
[1751280663249,2.90710239,652.07,651.54,1.6]
[1751280663454,2.90710239,652.06,651.54,1.6]
[1751280663649,2.404721,652.05,651.54,1.6]
[1751280663850,2.404721,652.04,651.54,1.6]
[1751280664051,2.906998,652.03,651.54,1.6]
[1751280664255,2.906998,652.02,651.54,1.6]
[1751280664452,2.906998,652.01,651.54,1.6]
[1751280664654,2.404721,652.0,651.54,1.6]
[1751280664852,2.404721,651.99,651.54,1.6]
[1751280665055,2.404721,651.98,651.54,1.6]
[1751280665255,2.404721,651.97,651.54,1.6]
[1751280665553,2.404721,651.96,651.54,1.6]
[1751280665752,2.404721,651.95,651.54,1.6]
[1751280665954,2.404721,651.94,651.54,1.6]
[1751280666151,2.404721,651.93,651.54,1.6]
[1751280666354,2.404721,651.92,651.54,1.6]
[1751280666552,2.404721,651.91,651.54,1.6]
[1751280666852,2.404721,651.9,651.55,1.544]
[1751280667054,2.404721,651.89,651.55,1.544]
[1751280667254,1.0522799,651.88,651.55,1.544]
[1751280667455,1.0522799,651.87,651.55,1.544]
[1751280667655,1.0522799,651.86,651.55,1.544]
[1751280667854,1.0522799,651.85,651.55,1.544]
[1751280668058,1.0522799,651.84,651.55,1.544]
[1751280668258,1.0522799,651.83,651.55,1.544]
[1751280668458,1.0522799,651.82,651.55,1.544]
[1751280668755,1.0522799,651.81,651.55,1.544]
[1751280668954,0.50226307,652.58,651.55,1.544]
[1751280669154,2.90650177,652.57,651.55,1.544]
[1751280669359,2.90650177,652.56,651.55,1.544]
[1751280669558,2.90650177,652.55,651.55,1.544]
[1751280669756,2.90650177,652.54,651.55,1.544]
[1751280669955,2.90650177,652.53,651.56,1.575]
[1751280670156,2.90650177,652.52,651.56,1.575]
[1751280670354,2.90650177,652.51,651.57,1.533]
[1751280670557,2.90650177,652.5,651.57,1.533]
[1751280670859,2.90650177,652.49,651.57,1.533]
[1751280671056,2.90650177,652.48,651.57,1.533]
[1751280671259,2.90650177,652.47,651.57,1.533]
[1751280671455,2.90650177,652.46,651.57,1.533]
[1751280671658,2.90650177,652.45,651.58,1.7]
[1751280671861,2.90650177,652.44,651.58,1.7]
[1751280672062,2.90650177,652.43,651.58,1.7]
[1751280672362,1.55434417,652.42,651.58,1.7]
[1751280672558,2.90616185,652.41,651.58,1.7]
[1751280672758,2.90616185,652.4,651.58,1.7]
[1751280673059,2.90581968,652.39,651.58,1.7]
[1751280673256,2.90581968,652.38,651.58,1.7]
[1751280673459,2.90581968,652.37,651.58,1.7]
[1751280673660,2.90581968,652.36,651.58,1.7]
[1751280673860,1.14772814,652.01,651.59,1.585]
[1751280674061,2.90581968,652.0,651.59,1.585]
[1751280674363,2.40391803,651.99,651.59,1.585]
[1751280674564,2.40391803,651.98,651.59,1.585]
[1751280674763,2.40391803,651.97,651.6,1.981]
[1751280674963,2.40391803,651.96,651.6,1.981]
[1751280675163,2.40391803,651.95,651.6,1.981]
[1751280675360,1.0520811,651.94,651.6,1.981]
[1751280675666,1.0520811,651.93,651.6,1.981]
[1751280675959,1.0520811,651.92,651.6,1.981]
[1751280676160,1.0520811,651.91,651.6,1.981]
[1751280676359,1.0520811,651.9,651.6,1.981]
[1751280676561,1.0520811,651.89,651.6,1.981]
[1751280676758,1.0520811,651.88,651.6,1.981]
[1751280676962,1.0520811,651.87,651.6,1.981]
[1751280677160,1.0520811,651.86,651.6,1.981]
[1751280677361,1.14772814,652.06,651.6,1.981]
[1751280677564,1.05198718,652.05,651.6,1.981]
[1751280677760,1.05198718,652.04,651.6,1.981]
[1751280677962,1.14772814,652.07,651.6,1.981]
[1751280677963,1.05198718,652.03,651.6,1.981]
[1751280678161,1.05198718,652.02,651.6,1.981]
[1751280678361,1.05198718,652.01,651.6,1.981]
[1751280678565,1.05198718,652.0,651.6,1.981]
[1751280678761,1.05198718,651.99,651.6,1.981]
[1751280678965,1.05198718,651.98,651.6,1.981]
[1751280679162,1.05198718,651.97,651.6,1.981]
[1751280679366,1.14772814,652.08,651.6,1.981]
[1751280679664,2.40452241,652.07,651.6,1.981]
[1751280679962,2.40452241,652.06,651.6,1.981]
[1751280680167,1.05201291,652.05,651.6,1.981]
[1751280680367,1.05201291,652.04,651.6,1.981]
[1751280680567,1.05201291,652.03,651.6,1.981]
[1751280680766,1.05201291,652.02,651.6,1.981]
[1751280680967,1.05201291,652.01,651.6,1.981]
[1751280681169,1.05201291,652.0,651.6,1.981]
[1751280681366,1.05201291,651.99,651.6,1.981]
[1751280681669,1.05201291,651.98,651.6,1.981]
[1751280681869,1.14772814,652.15,651.6,1.981]
[1751280681870,1.05201291,651.97,651.6,1.981]
[1751280682070,1.14772814,652.17,651.6,1.981]
[1751280682271,2.40425977,652.16,651.6,1.981]
[1751280682567,2.40425977,652.15,651.6,1.981]
[1751280682770,2.40425977,652.14,651.6,1.981]
[1751280682965,2.40425977,652.13,651.6,1.981]
[1751280683168,2.40425977,652.12,651.6,1.981]
[1751280683368,2.40425977,652.11,651.6,1.981]
[1751280683574,2.40425977,652.1,651.61,0.63]
[1751280683774,2.40425977,652.09,651.61,0.63]
[1751280683972,2.40425977,652.08,651.61,0.63]
[1751280684175,1.14772814,652.19,651.61,0.63]
[1751280684176,2.40425977,652.07,651.61,0.63]
[1751280684473,1.14772814,652.18,651.61,0.63]
[1751280684474,2.40425977,652.06,651.62,1.302]
[1751280684676,1.05189805,652.05,651.62,1.302]
[1751280684877,1.05189805,652.04,651.62,1.302]
[1751280685077,1.14772814,652.18,651.63,1.207]
[1751280685277,4.05383141,652.17,651.63,1.207]
[1751280685475,2.90610327,652.16,651.63,1.207]
[1751280685674,2.90610327,652.15,651.63,1.207]
[1751280685879,2.40406928,652.14,651.63,1.207]
[1751280686079,2.40406928,652.13,651.63,1.207]
[1751280686380,2.40406928,652.12,651.63,1.207]
[1751280686579,2.40406928,652.11,651.63,1.207]
[1751280686876,2.40406928,652.1,651.63,1.207]
[1751280687176,2.40406928,652.09,651.63,1.207]
[1751280687377,2.40406928,652.08,651.63,1.207]
[1751280687576,2.40406928,652.07,651.63,2.35506196]
[1751280687779,2.40406928,652.06,651.63,2.35506196]
[1751280687978,2.40406928,652.05,651.63,2.35506196]
[1751280688178,2.40406928,652.04,651.63,2.35506196]
[1751280688378,2.40406928,652.03,651.63,2.35506196]
[1751280688578,1.05181537,652.02,651.63,2.35506196]
[1751280688779,1.05181537,652.01,651.64,1.14806196]
[1751280688979,1.05181537,652.01,651.63,1.207]
[1751280688980,1.05181537,652.0,651.63,2.35506196]
[1751280689180,1.05181537,651.99,651.63,2.35506196]
[1751280689377,1.14772814,652.15,651.63,2.35506196]
[1751280689378,1.05181537,651.98,651.63,2.35506196]
[1751280689579,1.05181537,651.97,651.63,2.35506196]
[1751280689782,1.05181537,651.96,651.63,2.35506196]
[1751280689977,1.05181537,651.95,651.63,2.35506196]
[1751280690278,1.14772814,652.15,651.63,2.35506196]
[1751280690480,2.90614997,652.14,651.63,2.35506196]
[1751280690678,2.40410793,652.13,651.63,2.35506196]
[1751280690876,2.40410793,652.12,651.63,2.35506196]
[1751280691076,2.40410793,652.11,651.63,2.35506196]
[1751280691276,2.40410793,652.1,651.63,2.35506196]
[1751280691480,2.40410793,652.09,651.63,2.35506196]
[1751280691678,2.40410793,652.08,651.63,2.35506196]
[1751280691878,2.40410793,652.07,651.64,1.14806196]
[1751280692083,2.40410793,652.06,651.64,1.14806196]
[1751280692282,2.40410793,652.05,651.65,2.106]
[1751280692478,2.40403506,652.04,651.65,3.723]
[1751280692684,2.40403506,652.03,651.65,3.723]
[1751280692882,1.05183226,652.02,651.65,3.723]
[1751280693182,1.05183226,652.01,651.65,3.723]
[1751280693479,1.05183226,652.0,651.65,3.723]
[1751280693779,1.05183226,651.99,651.65,4.87106196]
[1751280693982,1.05183226,651.98,651.65,4.87106196]
[1751280694178,1.05183226,651.97,651.65,4.87106196]
[1751280694381,1.05183226,651.96,651.65,4.87106196]
[1751280694582,1.05183226,651.95,651.65,4.87106196]
[1751280694780,1.14772814,652.14,651.65,3.723]
[1751280694982,2.90604392,652.13,651.65,3.723]
[1751280695278,2.40386171,652.12,651.65,3.723]
[1751280695482,2.40386171,652.11,651.65,3.723]
[1751280695778,2.40386171,652.1,651.65,4.87106196]
[1751280695981,2.40386171,652.09,651.65,4.87106196]
[1751280696179,2.40386171,652.08,651.65,4.87106196]
[1751280696377,2.40386171,652.07,651.65,4.87106196]
[1751280696576,2.40386171,652.06,651.65,4.87106196]
[1751280696779,2.40386171,652.05,651.65,4.87106196]
[1751280696982,2.40386171,652.04,651.65,4.87106196]
[1751280697279,2.40386171,652.03,651.65,4.87106196]
[1751280697482,2.40386171,652.02,651.65,4.87106196]
[1751280697783,1.05177347,652.01,651.65,4.87106196]
[1751280697984,1.05177347,652.0,651.65,4.87106196]
[1751280698182,1.05177347,651.99,651.65,4.87106196]
[1751280698383,1.05177347,651.98,651.66,1.525]
[1751280698580,1.05177347,651.97,651.66,1.525]
[1751280698780,1.05177347,651.96,651.66,2.67306196]
[1751280698983,1.05177347,651.95,651.66,2.67306196]
[1751280699183,1.05177347,651.94,651.66,2.67306196]
[1751280699379,1.14772814,652.13,651.66,2.67306196]
[1751280699679,2.90558803,652.12,651.66,2.67306196]
[1751280699884,2.40347856,652.11,651.66,2.67306196]
[1751280700083,2.40347856,652.1,651.66,2.67306196]
[1751280700280,2.40347856,652.09,651.66,2.67306196]
[1751280700584,2.40347856,652.08,651.66,2.67306196]
[1751280700780,2.40347856,652.07,651.67,1.522]
[1751280701085,2.40347856,652.06,651.68,1.605]
[1751280701284,2.40347856,652.05,651.68,1.605]
[1751280701481,2.40347856,652.04,651.68,1.605]
[1751280701685,2.40347856,652.03,651.68,1.605]
[1751280701982,2.40347856,652.02,651.68,1.605]
[1751280702184,1.05162076,652.01,651.68,1.605]
[1751280702383,1.05162076,652.0,651.68,1.605]
[1751280702585,1.05162076,651.99,651.68,1.605]
[1751280702885,1.05162076,651.98,651.68,1.605]
[1751280703085,1.05162076,651.97,651.68,1.605]
[1751280703285,1.05162076,651.96,651.68,1.605]
[1751280703585,1.05162076,651.95,651.68,1.605]
[1751280703783,0.50207293,652.12,651.68,1.605]
[1751280703784,1.05162076,651.94,651.68,1.605]
[1751280703985,0.50207293,652.12,651.68,1.605]
[1751280704187,2.40330367,652.11,651.68,1.605]
[1751280704384,2.40330367,652.1,651.68,1.605]
[1751280704685,2.40330367,652.09,651.68,1.605]
[1751280704884,1.14772814,652.13,651.68,1.605]
[1751280704885,2.40330367,652.08,651.68,1.605]
[1751280705080,2.40330367,652.07,651.68,1.605]
[1751280705283,2.40330367,652.06,651.69,1.794]
[1751280705482,2.40330367,652.05,651.69,1.794]
[1751280705687,2.40330367,652.04,651.69,1.794]
[1751280705881,2.40330367,652.03,651.69,1.794]
[1751280706082,1.05154424,652.02,651.69,1.794]
[1751280706383,1.05154424,652.01,651.69,1.794]
[1751280706682,1.05154424,652.0,651.69,1.794]
[1751280706882,1.05154424,651.99,651.69,1.794]
[1751280707087,1.05154424,651.98,651.69,1.794]
[1751280707290,1.05154424,651.97,651.69,1.794]
[1751280707583,0.50204579,652.17,651.69,1.794]
[1751280707788,2.90522182,652.16,651.69,1.794]
[1751280708084,2.40317603,652.15,651.69,1.794]
[1751280708284,2.40317603,652.14,651.69,1.794]
[1751280708483,2.40317603,652.13,651.69,1.794]
[1751280708683,2.40317603,652.12,651.69,1.794]
[1751280708888,2.40317603,652.11,651.69,1.794]
[1751280709088,2.40317603,652.1,651.69,1.794]
[1751280709288,2.40317603,652.09,651.7,1.393]
[1751280709490,2.40317603,652.08,651.7,1.393]
[1751280709686,2.40317603,652.07,651.7,1.393]
[1751280709986,2.40317603,652.06,651.7,1.393]
[1751280710186,2.40317603,652.05,651.7,1.393]
[1751280710385,1.05148775,652.04,651.7,1.393]
[1751280710591,1.05148775,652.03,651.7,1.393]
[1751280710788,1.05148775,652.02,651.7,1.393]
[1751280710985,1.05148775,652.01,651.7,1.393]
[1751280711186,1.05148775,652.0,651.7,1.393]
[1751280711385,1.05148775,651.99,651.7,1.393]
[1751280711590,1.05148775,651.98,651.7,1.393]
[1751280711790,1.05148775,651.97,651.7,1.393]
[1751280712086,1.14772814,652.17,651.7,1.393]
[1751280712287,2.90521115,652.16,651.7,1.393]
[1751280712587,2.40316678,652.15,651.7,1.393]
[1751280712787,2.40316678,652.14,651.7,1.393]
[1751280712986,2.40316678,652.13,651.7,1.393]
[1751280713187,2.40316678,652.12,651.7,1.393]
[1751280713491,2.40316678,652.11,651.7,1.393]
[1751280713688,2.40316678,652.1,651.7,1.393]
[1751280713892,2.40316678,652.09,651.7,1.393]
[1751280714191,2.40316678,652.08,651.71,2.16]
[1751280714386,2.40316678,652.07,651.71,4.56]
[1751280714588,2.40316678,652.06,651.71,4.56]
[1751280714795,2.40316678,652.05,651.71,4.56]
[1751280714988,1.05148439,652.04,651.71,4.56]
[1751280715193,1.05148439,652.03,651.71,4.56]
[1751280715386,1.05148439,652.02,651.71,4.56]
[1751280715587,1.05148439,652.01,651.71,4.56]
[1751280715788,1.05148439,652.0,651.71,4.56]
[1751280715987,1.05148439,651.99,651.71,4.56]
[1751280716187,1.05148439,651.98,651.71,4.56]
[1751280716393,1.05148439,651.97,651.71,4.56]
[1751280716689,1.05153417,651.96,651.71,4.56]
[1751280716888,1.14772814,652.16,651.71,4.56]
[1751280717087,1.14772814,652.14,651.71,4.56]
[1751280717287,2.40328206,652.13,651.71,4.56]
[1751280717488,2.40328206,652.12,651.71,4.56]
[1751280717688,2.40328206,652.11,651.71,4.56]
[1751280717889,2.40328206,652.1,651.71,4.56]
[1751280718088,2.40328206,652.09,651.71,4.56]
[1751280718292,2.40328206,652.08,651.71,4.56]
[1751280718492,2.40328206,652.07,651.71,4.56]
[1751280718688,2.40328206,652.06,651.71,4.56]
[1751280718889,2.40328206,652.05,651.71,4.56]
[1751280719092,2.40328206,652.04,651.71,4.56]
[1751280719387,2.40328206,652.03,651.71,4.56]
[1751280719589,1.05153417,652.02,651.71,4.56]
[1751280719792,1.05153417,652.01,651.71,4.56]
[1751280719992,1.05153417,652.0,651.71,4.56]
[1751280720191,1.05153417,651.99,651.71,4.56]
[1751280720392,1.05153417,651.98,651.71,4.56]
[1751280720595,1.05153417,651.97,651.71,4.56]
[1751280720893,1.05153417,651.96,651.71,4.56]
[1751280721091,1.05153417,651.95,651.71,4.56]
[1751280721290,1.14772814,652.12,651.71,4.56]
[1751280721494,2.40358455,652.11,651.71,4.56]
[1751280721693,2.40358455,652.1,651.71,4.56]
[1751280721896,1.14772814,652.12,651.71,4.56]
[1751280721897,2.40358455,652.09,651.71,4.56]
[1751280722096,2.40358455,652.08,651.71,4.56]
[1751280722297,2.40358455,652.07,651.71,4.56]
[1751280722498,2.40358455,652.06,651.71,4.56]
[1751280722692,2.40358455,652.05,651.71,4.56]
[1751280722896,2.40358455,652.04,651.71,4.56]
[1751280723197,2.40358455,652.03,651.71,4.56]
[1751280723397,2.40358455,652.02,651.71,4.56]
[1751280723598,1.05166653,652.01,651.71,4.56]
[1751280723793,1.14772814,652.11,651.71,4.56]
[1751280723794,1.05166653,652.0,651.71,4.56]
[1751280723997,1.05166653,651.99,651.71,4.56]
[1751280724194,1.05166653,651.98,651.71,4.56]
[1751280724398,1.05166653,651.97,651.71,4.56]
[1751280724594,1.05166653,651.96,651.71,4.56]
[1751280724794,1.05166653,651.95,651.71,4.56]
[1751280724994,1.05166653,651.94,651.71,4.56]
[1751280725295,1.05196843,651.93,651.71,4.56]
[1751280725499,1.14772814,652.1,651.71,4.56]
[1751280725700,2.40433465,652.09,651.71,4.56]
[1751280725897,2.40433465,652.08,651.71,4.56]
[1751280726096,2.40433465,652.07,651.72,1.533]
[1751280726300,2.40433465,652.06,651.72,1.533]
[1751280726494,2.40433465,652.05,651.72,1.533]
[1751280726700,2.40433465,652.04,651.72,1.533]
[1751280726897,2.40433465,652.03,651.72,1.533]
[1751280727100,2.40433465,652.02,651.72,1.533]
[1751280729301,1.05198249,651.92,651.76,0.26684456]
[1751280729598,1.14772814,652.09,651.76,0.26684456]
[1751280729804,2.40464117,652.08,651.76,0.26684456]
[1751280730000,2.40464117,652.07,651.76,0.26684456]
[1751280730203,2.40464117,652.06,651.76,0.26684456]
[1751280730404,2.40464117,652.05,651.76,0.26684456]
[1751280730602,2.40464117,652.04,651.76,0.26684456]
[1751280730806,2.40464117,652.03,651.76,0.26684456]
[1751280731106,2.40464117,652.02,651.76,0.26684456]
[1751280731404,2.40464117,652.01,651.76,0.26684456]
[1751280731607,2.40464117,652.0,651.76,0.26684456]
[1751280731807,2.40464117,651.99,651.76,0.26684456]
[1751280732003,2.40464117,651.98,651.76,0.26684456]
[1751280732204,2.40464117,651.97,651.76,0.26684456]
[1751280732404,2.40464117,651.96,651.76,0.26684456]
[1751280732610,1.05235944,651.95,651.76,0.26684456]
[1751280732910,1.05235944,651.94,651.76,0.26684456]
[1751280733105,1.05235944,651.93,651.76,0.26684456]
[1751280733306,1.05235944,651.92,651.76,0.26684456]
[1751280733504,1.05235944,651.91,651.76,0.26684456]
[1751280733708,1.05235944,651.9,651.76,0.26684456]
[1751280733909,1.05235944,651.89,651.76,0.26684456]
[1751280734110,1.05235944,651.88,651.76,0.26684456]
[1751280734306,1.05235944,651.87,651.76,0.26684456]
[1751280734507,1.05235944,651.86,651.76,0.26684456]
[1751280734706,1.05235944,651.85,651.76,0.26684456]
[1751280734912,0.50278332,652.04,651.76,0.26684456]
[1751280735208,2.9088211,652.03,651.76,0.26684456]
[1751280735408,2.9088211,652.02,651.76,0.26684456]
[1751280735612,2.40603778,652.01,651.76,0.26684456]
[1751280735810,2.40603778,652.0,651.76,0.26684456]
[1751280736010,2.40603778,651.99,651.76,0.26684456]
[1751280736214,2.40603778,651.98,651.76,0.26684456]
[1751280736414,2.40603778,651.97,651.76,1.40484456]
[1751280736608,2.40603778,651.96,651.76,1.40484456]
[1751280736811,2.40603778,651.95,651.76,1.40484456]
[1751280737011,2.40603778,651.94,651.76,1.40484456]
[1751280737210,2.40603778,651.93,651.76,1.40484456]
[1751280737413,2.40603778,651.92,651.76,1.40484456]
[1751280737617,2.40603778,651.91,651.76,1.40484456]
[1751280737917,1.05297951,651.9,651.76,1.40484456]
[1751280738112,1.05297951,651.89,651.76,1.40484456]
[1751280738312,1.05297951,651.88,651.76,1.40484456]